[Event "*** SCC Grand Prix: Titled Tuesday Blitz"]
[Site "Chess.com"]
[Date "2020.10.13"]
[Round "3"]
[White "zurzan"]
[Black "zverr1"]
[Result "1-0"]
[WhiteElo "1997"]
[BlackElo "2456"]
[TimeControl "180+1"]
[EndTime "10:28:09 PDT"]
[Termination "zurzan won by resignation"]

1. f4 {[%clk 0:03:00.9]} 1... e5 {[%clk 0:02:55.8]} 2. fxe5 {[%clk 0:03:00.3]}
2... d6 {[%clk 0:02:54.8]} 3. exd6 {[%clk 0:03:01.2]} 3... Bxd6 {[%clk
0:02:55.7]} 4. Nf3 {[%clk 0:03:02.1]} 4... Bg4 {[%clk 0:02:53]} 5. e3 {[%clk
0:03:01.6]} 5... Nc6 {[%clk 0:02:45.9]} 6. Nc3 {[%clk 0:03:01.5]} 6... Nf6
{[%clk 0:02:41.9]} 7. Be2 {[%clk 0:02:59.9]} 7... Qd7 {[%clk 0:02:39.2]} 8. d4
{[%clk 0:02:57.5]} 8... Bb4 {[%clk 0:02:26.1]} 9. O-O {[%clk 0:02:56.6]} 9...
O-O {[%clk 0:02:19.7]} 10. Ne5 {[%clk 0:02:43.2]} 10... Nxe5 {[%clk 0:02:17.6]}
11. dxe5 {[%clk 0:02:41.4]} 11... Qxd1 {[%clk 0:02:15.5]} 12. Bxd1 {[%clk
0:02:39]} 12... Bxc3 {[%clk 0:02:14.1]} 13. exf6 {[%clk 0:02:34.3]} 13... Bxd1
{[%clk 0:02:07.2]} 14. bxc3 {[%clk 0:02:34.3]} 14... Bxc2 {[%clk 0:02:04.4]} 15.
fxg7 {[%clk 0:02:34.3]} 15... Rfe8 {[%clk 0:01:59.8]} 16. Re1 {[%clk 0:02:21.4]}
16... Rad8 {[%clk 0:01:52.9]} 17. c4 {[%clk 0:02:19]} 17... c5 {[%clk
0:01:40.5]} 18. Bb2 {[%clk 0:02:13.4]} 18... Re4 {[%clk 0:01:38.3]} 19. Bf6
{[%clk 0:02:05]} 19... Rde8 {[%clk 0:01:34.2]} 20. Rac1 {[%clk 0:01:59.7]} 20...
Rxc4 {[%clk 0:01:31]} 21. e4 {[%clk 0:01:29.3]} 21... Rcxe4 {[%clk 0:01:05]} 22.
Rxe4 {[%clk 0:01:27.4]} 22... Bxe4 {[%clk 0:01:05.9]} 23. Rxc5 {[%clk
0:01:26.7]} 23... Bd3 {[%clk 0:01:06.5]} 24. g4 {[%clk 0:00:46]} 24... b6 {[%clk
0:01:03.8]} 25. Rc7 {[%clk 0:00:44.3]} 25... h6 {[%clk 0:01:00.1]} 26. h4 {[%clk
0:00:43.3]} 26... a5 {[%clk 0:00:52.7]} 27. g5 {[%clk 0:00:42.8]} 27... hxg5
{[%clk 0:00:52.5]} 28. hxg5 {[%clk 0:00:42.3]} 28... a4 {[%clk 0:00:51.7]} 29.
Kf2 {[%clk 0:00:38.5]} 29... b5 {[%clk 0:00:47.7]} 30. Rc3 {[%clk 0:00:37]}
30... Bc4 {[%clk 0:00:47.6]} 31. Rh3 {[%clk 0:00:34]} 31... Re2+ {[%clk
0:00:37]} 32. Kf3 {[%clk 0:00:32.1]} 32... Rh2 {[%clk 0:00:26.1]} 33. Rxh2
{[%clk 0:00:31.4]} 1-0

[Event "*** SCC Grand Prix: Titled Tuesday Blitz"]
[Site "Chess.com"]
[Date "2020.10.13"]
[Round "3"]
[White "Ranindu2003"]
[Black "Piotrek1979"]
[Result "0-1"]
[WhiteElo "2610"]
[BlackElo "2433"]
[TimeControl "180+1"]
[EndTime "10:28:12 PDT"]
[Termination "Piotrek1979 won by checkmate"]

1. e4 {[%clk 0:03:00.6]} 1... c5 {[%clk 0:02:58.2]} 2. Nf3 {[%clk 0:03:00.5]}
2... Nc6 {[%clk 0:02:56.2]} 3. d4 {[%clk 0:03:00.3]} 3... cxd4 {[%clk
0:02:57.1]} 4. Nxd4 {[%clk 0:03:01]} 4... Nf6 {[%clk 0:02:57.6]} 5. Nc3 {[%clk
0:03:01.5]} 5... e5 {[%clk 0:02:57.8]} 6. Ndb5 {[%clk 0:03:01.7]} 6... d6 {[%clk
0:02:57.2]} 7. Bg5 {[%clk 0:03:02.4]} 7... a6 {[%clk 0:02:57.3]} 8. Na3 {[%clk
0:03:03.1]} 8... b5 {[%clk 0:02:57.9]} 9. Nd5 {[%clk 0:03:03.7]} 9... Be7 {[%clk
0:02:58.5]} 10. Bxf6 {[%clk 0:03:04.4]} 10... Bxf6 {[%clk 0:02:59.4]} 11. c3
{[%clk 0:03:05.1]} 11... Bg5 {[%clk 0:02:59.3]} 12. Nc2 {[%clk 0:03:05.4]} 12...
Rb8 {[%clk 0:02:59.8]} 13. a4 {[%clk 0:03:05.2]} 13... bxa4 {[%clk 0:02:58.8]}
14. Ncb4 {[%clk 0:03:05.2]} 14... Nxb4 {[%clk 0:02:56.3]} 15. cxb4 {[%clk
0:03:05]} 15... O-O {[%clk 0:02:46.7]} 16. Rxa4 {[%clk 0:02:59.3]} 16... a5
{[%clk 0:02:46.6]} 17. b5 {[%clk 0:02:40]} 17... Bd7 {[%clk 0:02:45.2]} 18. Nc3
{[%clk 0:02:39.3]} 18... d5 {[%clk 0:02:45.8]} 19. exd5 {[%clk 0:02:19.4]} 19...
f5 {[%clk 0:02:44.6]} 20. Bc4 {[%clk 0:02:14.4]} 20... e4 {[%clk 0:02:34.4]} 21.
O-O {[%clk 0:01:58]} 21... Kh8 {[%clk 0:02:33.7]} 22. d6 {[%clk 0:01:50.1]}
22... Rf6 {[%clk 0:02:31.7]} 23. Qa1 {[%clk 0:01:37.2]} 23... Bf4 {[%clk
0:02:23.2]} 24. g3 {[%clk 0:01:30.8]} 24... Rh6 {[%clk 0:01:43.2]} 25. Rxa5
{[%clk 0:01:22.9]} 25... Be5 {[%clk 0:01:21.6]} 26. Qa3 {[%clk 0:01:04.6]} 26...
Bxd6 {[%clk 0:01:19.6]} 27. Qa2 {[%clk 0:00:56.3]} 27... Bc5 {[%clk 0:01:18.2]}
28. Rd1 {[%clk 0:00:40.4]} 28... Qe8 {[%clk 0:01:09.3]} 29. Bd5 {[%clk
0:00:30.5]} 29... Bxf2+ {[%clk 0:01:07.7]} 30. Kxf2 {[%clk 0:00:28.1]} 30...
Rxh2+ {[%clk 0:01:07.8]} 31. Ke3 {[%clk 0:00:19.2]} 31... Qh5 {[%clk 0:01:08.7]}
32. Ra8 {[%clk 0:00:14]} 32... Qh6+ {[%clk 0:01:00.5]} 33. Kd4 {[%clk
0:00:11.8]} 33... Qb6+ {[%clk 0:00:56.9]} 34. Kc4 {[%clk 0:00:08.6]} 34... Bxb5+
{[%clk 0:00:56.9]} 35. Nxb5 {[%clk 0:00:08.7]} 35... Qxb5+ {[%clk 0:00:57.8]}
36. Kc3 {[%clk 0:00:09.2]} 36... Qb4# {[%clk 0:00:56.9]} 0-1

[Event "*** SCC Grand Prix: Titled Tuesday Blitz"]
[Site "Chess.com"]
[Date "2020.10.13"]
[Round "3"]
[White "semchik73"]
[Black "nochewycandy"]
[Result "0-1"]
[WhiteElo "2345"]
[BlackElo "2556"]
[TimeControl "180+1"]
[EndTime "10:28:12 PDT"]
[Termination "nochewycandy won by resignation"]

1. Nf3 {[%clk 0:02:58.9]} 1... Nf6 {[%clk 0:02:58.3]} 2. c4 {[%clk 0:02:59.5]}
2... e6 {[%clk 0:02:57.7]} 3. d4 {[%clk 0:02:59.7]} 3... d5 {[%clk 0:02:58.1]}
4. Nc3 {[%clk 0:03:00.3]} 4... Bb4 {[%clk 0:02:56.7]} 5. e3 {[%clk 0:02:59.9]}
5... O-O {[%clk 0:02:54.6]} 6. Bd3 {[%clk 0:03:00]} 6... c5 {[%clk 0:02:53.7]}
7. O-O {[%clk 0:02:57.1]} 7... Bxc3 {[%clk 0:02:51]} 8. bxc3 {[%clk 0:02:56.7]}
8... Qa5 {[%clk 0:02:41.7]} 9. Bd2 {[%clk 0:02:49.5]} 9... dxc4 {[%clk
0:02:27.4]} 10. Bxc4 {[%clk 0:02:49.2]} 10... b6 {[%clk 0:02:28]} 11. Bd3 {[%clk
0:02:37.1]} 11... Ba6 {[%clk 0:02:19.4]} 12. c4 {[%clk 0:02:31.6]} 12... Qa3
{[%clk 0:02:19.4]} 13. Qc2 {[%clk 0:02:25.3]} 13... cxd4 {[%clk 0:02:15.7]} 14.
exd4 {[%clk 0:02:19.8]} 14... Nc6 {[%clk 0:02:13.9]} 15. Rab1 {[%clk 0:02:06]}
15... h6 {[%clk 0:02:06.5]} 16. d5 {[%clk 0:01:54.7]} 16... exd5 {[%clk
0:01:56]} 17. Rb3 {[%clk 0:01:53]} 17... Qd6 {[%clk 0:01:31.6]} 18. cxd5 {[%clk
0:01:50.8]} 18... Bxd3 {[%clk 0:01:31.1]} 19. Rxd3 {[%clk 0:01:50.5]} 19... Ne7
{[%clk 0:01:22.4]} 20. Qb3 {[%clk 0:01:40.2]} 20... Nexd5 {[%clk 0:01:17.4]} 21.
Rd1 {[%clk 0:01:38.8]} 21... Rfd8 {[%clk 0:00:56.1]} 22. Bb4 {[%clk 0:01:25.5]}
22... Qe6 {[%clk 0:00:53.3]} 23. Nd4 {[%clk 0:01:24.5]} 23... Qe4 {[%clk
0:00:25.4]} 24. f3 {[%clk 0:01:21.6]} 24... Qg6 {[%clk 0:00:18.6]} 25. Nc6
{[%clk 0:01:18.9]} 25... Rd7 {[%clk 0:00:14.3]} 26. Rxd5 {[%clk 0:01:15.8]}
26... Nxd5 {[%clk 0:00:15.2]} 27. Rxd5 {[%clk 0:01:15]} 27... Qxc6 {[%clk
0:00:14.6]} 28. Rf5 {[%clk 0:00:54.5]} 28... Re8 {[%clk 0:00:13.8]} 29. h3
{[%clk 0:00:53.8]} 29... Qe6 {[%clk 0:00:11.4]} 30. Qc2 {[%clk 0:00:51.2]} 30...
Rd1+ {[%clk 0:00:11.4]} 31. Kh2 {[%clk 0:00:48.9]} 31... Rd5 {[%clk 0:00:11.8]}
32. Rf4 {[%clk 0:00:41.2]} 32... Qe5 {[%clk 0:00:12]} 33. Bc3 {[%clk 0:00:39.9]}
33... Qxf4+ {[%clk 0:00:11.6]} 0-1

[Event "*** SCC Grand Prix: Titled Tuesday Blitz"]
[Site "Chess.com"]
[Date "2020.10.13"]
[Round "3"]
[White "markberk"]
[Black "PetrolulSah"]
[Result "1-0"]
[WhiteElo "2412"]
[BlackElo "2172"]
[TimeControl "180+1"]
[EndTime "10:28:21 PDT"]
[Termination "markberk won by resignation"]

1. Nf3 {[%clk 0:03:00.9]} 1... Nf6 {[%clk 0:02:58.1]} 2. g3 {[%clk 0:02:58.4]}
2... g6 {[%clk 0:02:57]} 3. Bg2 {[%clk 0:02:57.9]} 3... Bg7 {[%clk 0:02:56.5]}
4. O-O {[%clk 0:02:58.3]} 4... O-O {[%clk 0:02:56.5]} 5. d4 {[%clk 0:02:58.5]}
5... d5 {[%clk 0:02:56.4]} 6. c4 {[%clk 0:02:58]} 6... dxc4 {[%clk 0:02:51.8]}
7. Na3 {[%clk 0:02:56.7]} 7... Na6 {[%clk 0:02:50.6]} 8. Nxc4 {[%clk 0:02:55.7]}
8... c5 {[%clk 0:02:48.7]} 9. dxc5 {[%clk 0:02:43.2]} 9... Be6 {[%clk
0:02:46.8]} 10. Nfe5 {[%clk 0:02:36.3]} 10... Nxc5 {[%clk 0:02:41.4]} 11. Be3
{[%clk 0:02:35.4]} 11... Rc8 {[%clk 0:02:35]} 12. Rc1 {[%clk 0:02:28]} 12... Bd5
{[%clk 0:02:23.7]} 13. f3 {[%clk 0:02:13.2]} 13... b5 {[%clk 0:02:15.3]} 14. Na3
{[%clk 0:01:53.3]} 14... Na4 {[%clk 0:02:06.3]} 15. Qd2 {[%clk 0:01:36.9]} 15...
Bxa2 {[%clk 0:01:56.3]} 16. Rxc8 {[%clk 0:01:15.2]} 16... Qxc8 {[%clk
0:01:52.1]} 17. Nxb5 {[%clk 0:01:07.2]} 17... Ne4 {[%clk 0:01:29.7]} 18. Qb4
{[%clk 0:01:02.2]} 18... Bxe5 {[%clk 0:00:57.7]} 19. Qxa4 {[%clk 0:01:00]} 19...
Nxg3 {[%clk 0:00:44.1]} 20. hxg3 {[%clk 0:00:57.3]} 20... Bc4 {[%clk 0:00:36.9]}
21. Rc1 {[%clk 0:00:53]} 21... Bxb5 {[%clk 0:00:23.4]} 22. Qxb5 {[%clk
0:00:52.6]} 22... Qe6 {[%clk 0:00:20.5]} 23. Bf2 {[%clk 0:00:47.5]} 23... Rb8
{[%clk 0:00:19.5]} 24. Qc4 {[%clk 0:00:41.9]} 24... Qxc4 {[%clk 0:00:17.9]} 25.
Rxc4 {[%clk 0:00:41.4]} 25... Rxb2 {[%clk 0:00:16.6]} 26. Bf1 {[%clk 0:00:37.4]}
26... a5 {[%clk 0:00:15.7]} 27. Rc5 {[%clk 0:00:34.8]} 27... Bd6 {[%clk
0:00:14.5]} 28. Rxa5 {[%clk 0:00:33.8]} 28... Kg7 {[%clk 0:00:14]} 29. Bd4+
{[%clk 0:00:25.3]} 1-0

[Event "*** SCC Grand Prix: Titled Tuesday Blitz"]
[Site "Chess.com"]
[Date "2020.10.13"]
[Round "3"]
[White "allvim"]
[Black "FloMasterAAK"]
[Result "0-1"]
[WhiteElo "2309"]
[BlackElo "2539"]
[TimeControl "180+1"]
[EndTime "10:28:26 PDT"]
[Termination "FloMasterAAK won by resignation"]

1. e4 {[%clk 0:03:00.9]} 1... e5 {[%clk 0:02:59.2]} 2. Nf3 {[%clk 0:03:00.5]}
2... Nc6 {[%clk 0:02:59.3]} 3. Bc4 {[%clk 0:03:00.7]} 3... Nf6 {[%clk
0:02:59.2]} 4. O-O {[%clk 0:03:00.7]} 4... Be7 {[%clk 0:02:58.6]} 5. d4 {[%clk
0:02:50.6]} 5... exd4 {[%clk 0:02:38.4]} 6. Nxd4 {[%clk 0:02:36.8]} 6... Nxe4
{[%clk 0:02:19.7]} 7. Nf5 {[%clk 0:02:07.4]} 7... O-O {[%clk 0:01:43.7]} 8. Qg4
{[%clk 0:01:48.6]} 8... Bg5 {[%clk 0:01:09.5]} 9. Qxe4 {[%clk 0:01:38.3]} 9...
d5 {[%clk 0:01:04.5]} 10. Bxd5 {[%clk 0:01:04.1]} 10... Bxf5 {[%clk 0:01:01.6]}
11. Qxf5 {[%clk 0:00:55.4]} 11... Bxc1 {[%clk 0:01:01.1]} 12. Rxc1 {[%clk
0:00:19.2]} 12... Ne7 {[%clk 0:01:00.7]} 13. Qg4 {[%clk 0:00:14.2]} 13... Nxd5
{[%clk 0:00:58.4]} 14. Nd2 {[%clk 0:00:13]} 14... Nf6 {[%clk 0:00:52.8]} 15. Qf4
{[%clk 0:00:09]} 15... Re8 {[%clk 0:00:53.7]} 16. Nf3 {[%clk 0:00:08.5]} 16...
Re4 {[%clk 0:00:52]} 17. Qg3 {[%clk 0:00:08.2]} 17... Qe7 {[%clk 0:00:52]} 18.
h3 {[%clk 0:00:08]} 18... Rd8 {[%clk 0:00:51.3]} 19. Rd1 {[%clk 0:00:08.4]}
19... Rxd1+ {[%clk 0:00:50]} 20. Rxd1 {[%clk 0:00:09.3]} 20... h6 {[%clk
0:00:50.9]} 21. Rd3 {[%clk 0:00:07.6]} 21... Re2 {[%clk 0:00:51.8]} 22. Rc3
{[%clk 0:00:06]} 22... Ne4 {[%clk 0:00:51.1]} 23. Qxc7 {[%clk 0:00:03.7]} 23...
Nxc3 {[%clk 0:00:50.8]} 24. Qxc3 {[%clk 0:00:03.7]} 24... Qd7 {[%clk 0:00:49.8]}
25. Qb3 {[%clk 0:00:03.3]} 25... Qd1+ {[%clk 0:00:46.5]} 26. Kh2 {[%clk
0:00:03.7]} 26... Rxf2 {[%clk 0:00:47.4]} 27. Qe3 {[%clk 0:00:03.7]} 27... Qf1
{[%clk 0:00:45]} 28. Qe8+ {[%clk 0:00:03.6]} 28... Kh7 {[%clk 0:00:44.7]} 29.
Qe4+ {[%clk 0:00:04.5]} 29... g6 {[%clk 0:00:44.5]} 30. Qg4 {[%clk 0:00:04.5]}
30... Qe2 {[%clk 0:00:39]} 31. Qh4 {[%clk 0:00:03.3]} 31... Rxg2+ {[%clk
0:00:38.2]} 0-1

[Event "*** SCC Grand Prix: Titled Tuesday Blitz"]
[Site "Chess.com"]
[Date "2020.10.13"]
[Round "3"]
[White "Azerichess"]
[Black "W_Amadeus"]
[Result "1-0"]
[WhiteElo "2951"]
[BlackElo "2701"]
[TimeControl "180+1"]
[EndTime "10:28:33 PDT"]
[Termination "Azerichess won by resignation"]

1. d4 {[%clk 0:03:00.9]} 1... Nf6 {[%clk 0:02:58.8]} 2. c4 {[%clk 0:03:01.3]}
2... e6 {[%clk 0:02:57.9]} 3. Nc3 {[%clk 0:03:01.9]} 3... Bb4 {[%clk 0:02:58.1]}
4. Qc2 {[%clk 0:03:02.5]} 4... O-O {[%clk 0:02:54.8]} 5. e4 {[%clk 0:03:02.7]}
5... d5 {[%clk 0:02:54.3]} 6. e5 {[%clk 0:03:03.1]} 6... Ne4 {[%clk 0:02:54.7]}
7. Bd3 {[%clk 0:03:01.9]} 7... c5 {[%clk 0:02:54.6]} 8. Nf3 {[%clk 0:03:02.5]}
8... cxd4 {[%clk 0:02:53.2]} 9. Nxd4 {[%clk 0:03:03.4]} 9... Nd7 {[%clk
0:02:51.2]} 10. Bf4 {[%clk 0:03:03.7]} 10... Qh4 {[%clk 0:02:51.5]} 11. g3
{[%clk 0:03:04.2]} 11... Qh5 {[%clk 0:02:52]} 12. O-O {[%clk 0:03:01.5]} 12...
g5 {[%clk 0:02:35.8]} 13. cxd5 {[%clk 0:03:00.7]} 13... gxf4 {[%clk 0:02:31.4]}
14. dxe6 {[%clk 0:02:56.6]} 14... fxg3 {[%clk 0:02:23.4]} 15. hxg3 {[%clk
0:02:48.8]} 15... Nxc3 {[%clk 0:02:16.4]} 16. exd7 {[%clk 0:02:41.5]} 16... Bxd7
{[%clk 0:02:16.5]} 17. bxc3 {[%clk 0:02:42]} 17... Rac8 {[%clk 0:02:09.7]} 18.
Bf5 {[%clk 0:02:25.7]} 18... Bxc3 {[%clk 0:01:10.7]} 19. Bxd7 {[%clk 0:02:21.7]}
19... Bxa1 {[%clk 0:01:07.6]} 20. Bxc8 {[%clk 0:02:20.8]} 20... Bxd4 {[%clk
0:01:08.2]} 21. Bxb7 {[%clk 0:02:20.3]} 21... Qxe5 {[%clk 0:01:04.1]} 22. Kg2
{[%clk 0:02:19.4]} 22... Kg7 {[%clk 0:00:58]} 23. Rh1 {[%clk 0:01:54.3]} 23...
h6 {[%clk 0:00:56.8]} 24. Rh4 {[%clk 0:01:54.5]} 24... Rb8 {[%clk 0:00:33.1]}
25. Rg4+ {[%clk 0:01:38.1]} 25... Kf8 {[%clk 0:00:32.9]} 26. Rf4 {[%clk
0:01:27.6]} 26... Bb6 {[%clk 0:00:18.3]} 27. Qc4 {[%clk 0:01:06.1]} 27... f6
{[%clk 0:00:05.4]} 28. Rg4 {[%clk 0:01:00]} 28... f5 {[%clk 0:00:01.8]} 29. Qg8+
{[%clk 0:00:52.8]} 29... Ke7 {[%clk 0:00:02.1]} 30. Qh7+ {[%clk 0:00:51]} 30...
Kd6 {[%clk 0:00:01.7]} 31. Rg6+ {[%clk 0:00:50.4]} 31... Kc5 {[%clk 0:00:01.9]}
32. Bf3 {[%clk 0:00:50.9]} 32... Kb4 {[%clk 0:00:01.9]} 33. Qxh6 {[%clk
0:00:45.3]} 33... Qc5 {[%clk 0:00:02.3]} 34. Qd2+ {[%clk 0:00:44.3]} 34... Ka3
{[%clk 0:00:02.9]} 35. Rd6 {[%clk 0:00:41.2]} 35... f4 {[%clk 0:00:01.5]} 36.
Rd3+ {[%clk 0:00:41.1]} 1-0

[Event "*** SCC Grand Prix: Titled Tuesday Blitz"]
[Site "Chess.com"]
[Date "2020.10.13"]
[Round "3"]
[White "shrek4life02"]
[Black "gmpeter008"]
[Result "1-0"]
[WhiteElo "2578"]
[BlackElo "2382"]
[TimeControl "180+1"]
[EndTime "10:28:34 PDT"]
[Termination "shrek4life02 won by resignation"]

1. d4 {[%clk 0:03:00.9]} 1... Nf6 {[%clk 0:02:59]} 2. Nc3 {[%clk 0:03:01.3]}
2... c5 {[%clk 0:02:58.7]} 3. d5 {[%clk 0:03:01.2]} 3... d6 {[%clk 0:02:56.3]}
4. e4 {[%clk 0:03:01.7]} 4... g6 {[%clk 0:02:55.2]} 5. Bb5+ {[%clk 0:02:59.7]}
5... Nbd7 {[%clk 0:02:53]} 6. f3 {[%clk 0:03:00]} 6... Bg7 {[%clk 0:02:52.4]} 7.
Nge2 {[%clk 0:02:59.8]} 7... O-O {[%clk 0:02:50.1]} 8. Be3 {[%clk 0:02:54.3]}
8... Ne5 {[%clk 0:02:46.6]} 9. Ng3 {[%clk 0:02:54.4]} 9... a6 {[%clk 0:02:45.7]}
10. Be2 {[%clk 0:02:54.9]} 10... b5 {[%clk 0:02:45.4]} 11. Nb1 {[%clk
0:02:54.5]} 11... e6 {[%clk 0:02:21.5]} 12. O-O {[%clk 0:02:43.5]} 12... exd5
{[%clk 0:02:20.1]} 13. exd5 {[%clk 0:02:43.9]} 13... Re8 {[%clk 0:02:15.6]} 14.
Ne4 {[%clk 0:02:32.8]} 14... Bb7 {[%clk 0:01:21.9]} 15. c4 {[%clk 0:02:17]}
15... Nxe4 {[%clk 0:01:14.5]} 16. fxe4 {[%clk 0:02:16.3]} 16... Nxc4 {[%clk
0:01:14.2]} 17. Bxc4 {[%clk 0:02:16.3]} 17... bxc4 {[%clk 0:01:06.4]} 18. Nc3
{[%clk 0:02:11.5]} 18... f5 {[%clk 0:00:57.1]} 19. Qd2 {[%clk 0:01:27.7]} 19...
Bxc3 {[%clk 0:00:44.9]} 20. Qxc3 {[%clk 0:01:27.1]} 20... Rxe4 {[%clk
0:00:45.8]} 21. Rad1 {[%clk 0:01:19.1]} 21... Qe7 {[%clk 0:00:44.2]} 22. Bf4
{[%clk 0:01:07.2]} 22... Re8 {[%clk 0:00:37.7]} 23. Qg3 {[%clk 0:01:06.3]} 23...
Rd4 {[%clk 0:00:29.9]} 24. Bxd6 {[%clk 0:00:59.6]} 24... Qd7 {[%clk 0:00:11.3]}
25. Bxc5 {[%clk 0:00:49.9]} 25... Rxd1 {[%clk 0:00:11.5]} 26. Rxd1 {[%clk
0:00:48.2]} 26... Bxd5 {[%clk 0:00:11.5]} 27. Bb4 {[%clk 0:00:34.3]} 27... Qc6
{[%clk 0:00:10.4]} 28. Bc3 {[%clk 0:00:30.5]} 28... Be4 {[%clk 0:00:05.8]} 29.
Qf2 {[%clk 0:00:27.3]} 29... Bd3 {[%clk 0:00:05.7]} 30. Qd4 {[%clk 0:00:26.8]}
30... Qd7 {[%clk 0:00:03.2]} 31. Qxd7 {[%clk 0:00:25.9]} 1-0

[Event "*** SCC Grand Prix: Titled Tuesday Blitz"]
[Site "Chess.com"]
[Date "2020.10.13"]
[Round "3"]
[White "Rodalquilar"]
[Black "AIROPITO7"]
[Result "0-1"]
[WhiteElo "2755"]
[BlackElo "2547"]
[TimeControl "180+1"]
[EndTime "10:28:36 PDT"]
[Termination "AIROPITO7 won by checkmate"]

1. d4 {[%clk 0:03:00.9]} 1... Nf6 {[%clk 0:02:59.1]} 2. Bf4 {[%clk 0:03:00.9]}
2... e6 {[%clk 0:02:51.2]} 3. e3 {[%clk 0:03:01.1]} 3... c5 {[%clk 0:02:51.5]}
4. c3 {[%clk 0:03:01.4]} 4... Nc6 {[%clk 0:02:50.5]} 5. Nd2 {[%clk 0:03:01.7]}
5... d6 {[%clk 0:02:50.9]} 6. dxc5 {[%clk 0:02:58.4]} 6... e5 {[%clk 0:02:51.1]}
7. Bg5 {[%clk 0:02:28.9]} 7... dxc5 {[%clk 0:02:49.5]} 8. Ngf3 {[%clk 0:02:06]}
8... h6 {[%clk 0:02:46.3]} 9. Bxf6 {[%clk 0:01:44.1]} 9... Qxf6 {[%clk
0:02:33.6]} 10. Bb5 {[%clk 0:01:44]} 10... a6 {[%clk 0:02:30.5]} 11. Ne4 {[%clk
0:01:29.9]} 11... Qe6 {[%clk 0:02:29.7]} 12. Bxc6+ {[%clk 0:01:06.2]} 12... Qxc6
{[%clk 0:02:28.8]} 13. Ng3 {[%clk 0:01:04.9]} 13... Bd6 {[%clk 0:02:28.8]} 14.
O-O {[%clk 0:01:02.8]} 14... O-O {[%clk 0:02:29.1]} 15. e4 {[%clk 0:01:01.9]}
15... b5 {[%clk 0:02:27.4]} 16. Nh4 {[%clk 0:00:54.7]} 16... Be6 {[%clk
0:02:24.7]} 17. Nhf5 {[%clk 0:00:53.4]} 17... Rfd8 {[%clk 0:02:22.7]} 18. Qg4
{[%clk 0:00:51.1]} 18... Bf8 {[%clk 0:02:22.6]} 19. Nxh6+ {[%clk 0:00:49.3]}
19... Kh8 {[%clk 0:02:22.9]} 20. Nhf5 {[%clk 0:00:49.5]} 20... g6 {[%clk
0:02:16.5]} 21. Qh4+ {[%clk 0:00:43.5]} 21... Kg8 {[%clk 0:02:15.3]} 22. Qg5
{[%clk 0:00:32.9]} 22... Kh7 {[%clk 0:02:13.8]} 23. Qh4+ {[%clk 0:00:28.3]}
23... Kg8 {[%clk 0:02:14]} 24. Ne7+ {[%clk 0:00:28.8]} 24... Bxe7 {[%clk
0:02:12]} 25. Qxe7 {[%clk 0:00:29.7]} 25... Qd6 {[%clk 0:02:12.7]} 26. Qg5
{[%clk 0:00:18.6]} 26... Qd2 {[%clk 0:02:12.6]} 27. Qxe5 {[%clk 0:00:18.8]}
27... Qxb2 {[%clk 0:02:08.3]} 28. h4 {[%clk 0:00:12.5]} 28... b4 {[%clk
0:02:06.8]} 29. Qxc5 {[%clk 0:00:10.8]} 29... bxc3 {[%clk 0:02:05.1]} 30. h5
{[%clk 0:00:11.3]} 30... Rac8 {[%clk 0:02:05]} 31. Qe5 {[%clk 0:00:11.4]} 31...
Qb5 {[%clk 0:01:59.2]} 32. Qf6 {[%clk 0:00:11.7]} 32... Qe8 {[%clk 0:01:58]} 33.
hxg6 {[%clk 0:00:11.1]} 33... fxg6 {[%clk 0:01:58.9]} 34. Rac1 {[%clk
0:00:10.5]} 34... Qf7 {[%clk 0:01:58.2]} 35. Qe5 {[%clk 0:00:09.6]} 35... c2
{[%clk 0:01:54.4]} 36. f4 {[%clk 0:00:10]} 36... Qa7+ {[%clk 0:01:50.5]} 37. Kh1
{[%clk 0:00:07.7]} 37... Kf7 {[%clk 0:01:49.9]} 38. Nh5 {[%clk 0:00:03.7]} 38...
gxh5 {[%clk 0:01:44.6]} 39. f5 {[%clk 0:00:04]} 39... Bd7 {[%clk 0:01:32.1]} 40.
Qh2 {[%clk 0:00:04]} 40... Qe3 {[%clk 0:01:25.4]} 41. Qxh5+ {[%clk 0:00:03.4]}
41... Kf6 {[%clk 0:01:25.7]} 42. Qh4+ {[%clk 0:00:03.9]} 42... Ke5 {[%clk
0:01:23.5]} 43. Qe7+ {[%clk 0:00:04.1]} 43... Kd4 {[%clk 0:01:19]} 44. Qd6+
{[%clk 0:00:04.4]} 44... Kc3 {[%clk 0:01:19.2]} 45. Qa3+ {[%clk 0:00:03.2]}
45... Kd2 {[%clk 0:01:19.4]} 46. Rxc2+ {[%clk 0:00:02.4]} 46... Rxc2 {[%clk
0:01:19]} 47. Qa5+ {[%clk 0:00:02.9]} 47... Rc3 {[%clk 0:01:19.1]} 48. Qxd8
{[%clk 0:00:03]} 48... Ke2 {[%clk 0:01:12.9]} 49. Rg1 {[%clk 0:00:02.7]} 49...
Qh6+ {[%clk 0:01:12.1]} 50. Qh4 {[%clk 0:00:02.2]} 50... Qxh4# {[%clk
0:01:12.3]} 0-1

[Event "*** SCC Grand Prix: Titled Tuesday Blitz"]
[Site "Chess.com"]
[Date "2020.10.13"]
[Round "3"]
[White "brunomorado"]
[Black "Kapibara_Warri0r"]
[Result "1-0"]
[WhiteElo "2307"]
[BlackElo "2084"]
[TimeControl "180+1"]
[EndTime "10:28:36 PDT"]
[Termination "brunomorado won on time"]

1. d4 {[%clk 0:03:00.4]} 1... Nf6 {[%clk 0:02:59]} 2. Nc3 {[%clk 0:03:00.6]}
2... d5 {[%clk 0:02:57.3]} 3. Bg5 {[%clk 0:03:01.1]} 3... Ne4 {[%clk 0:02:56.2]}
4. Nxe4 {[%clk 0:03:01.2]} 4... dxe4 {[%clk 0:02:57.1]} 5. e3 {[%clk 0:02:57.9]}
5... c5 {[%clk 0:02:50]} 6. c3 {[%clk 0:02:42.7]} 6... Qa5 {[%clk 0:02:42.8]} 7.
Bf4 {[%clk 0:02:27.3]} 7... g6 {[%clk 0:02:27.2]} 8. Be5 {[%clk 0:02:24.7]} 8...
f6 {[%clk 0:02:25]} 9. Bxb8 {[%clk 0:02:22.9]} 9... Rxb8 {[%clk 0:02:25.9]} 10.
Qc2 {[%clk 0:02:19.9]} 10... f5 {[%clk 0:02:21.1]} 11. h4 {[%clk 0:02:13.4]}
11... Bg7 {[%clk 0:02:17.3]} 12. dxc5 {[%clk 0:02:07]} 12... Qxc5 {[%clk
0:02:11.3]} 13. Rd1 {[%clk 0:02:06.9]} 13... O-O {[%clk 0:02:03.3]} 14. Qb3+
{[%clk 0:02:03.5]} 14... Kh8 {[%clk 0:02:03.1]} 15. h5 {[%clk 0:02:03.3]} 15...
g5 {[%clk 0:02:03.2]} 16. h6 {[%clk 0:02:01.6]} 16... Bf6 {[%clk 0:02:01.2]} 17.
Bc4 {[%clk 0:01:56.4]} 17... f4 {[%clk 0:01:56.6]} 18. Rd5 {[%clk 0:01:52.7]}
18... Qc7 {[%clk 0:01:35.1]} 19. Ne2 {[%clk 0:01:04]} 19... Be6 {[%clk 0:01:20]}
20. exf4 {[%clk 0:01:02.9]} 20... b5 {[%clk 0:00:56.7]} 21. Bxb5 {[%clk
0:00:54.6]} 21... Bxd5 {[%clk 0:00:56]} 22. Qxd5 {[%clk 0:00:55.5]} 22... Qa5
{[%clk 0:00:45.8]} 23. a4 {[%clk 0:00:55.5]} 23... a6 {[%clk 0:00:41.4]} 24.
fxg5 {[%clk 0:00:55.2]} 24... Rfd8 {[%clk 0:00:29]} 25. Qxe4 {[%clk 0:00:41.4]}
25... axb5 {[%clk 0:00:16.6]} 26. gxf6 {[%clk 0:00:41.2]} 26... exf6 {[%clk
0:00:17.1]} 27. Qf4 {[%clk 0:00:30.5]} 27... Qb6 {[%clk 0:00:13.4]} 28. Rh5
{[%clk 0:00:24.7]} 28... bxa4 {[%clk 0:00:09.6]} 29. Rb5 {[%clk 0:00:24.8]} 1-0